[Event "Titled Tuesday Blitz May 10 Early 2022"]
[White "Arabidze, Meri"]
[Black "Ferreira, Vitor Hugo Vieira"]
[WhiteFideId "13604040"]
[BlackFideId "2119765"]
[WhiteElo "2335"]
[BlackElo "2165"]
[Result "1-0"]
[Round "06"]
[TimeControl "180+1"]
[Date "2022.05.11"]
[WhiteClock "0:00:07"]
[BlackClock "0:00:08"]

1. Nf3 {[%clk 0:03:00]}  Nf6 {[%clk 0:02:57]} 2. g3 {[%clk 0:03:01]}  g6 {[%clk 0:02:57]} 3. Bg2 {[%clk 0:03:01]}  Bg7 {[%clk 0:02:57]} 4. O-O {[%clk 0:03:02]}  O-O {[%clk 0:02:58]} 5. d4 {[%clk 0:03:03]}  d5 {[%clk 0:02:58]} 6. Nc3 {[%clk 0:03:02]}  b6 {[%clk 0:02:53]} 7. a4 {[%clk 0:03:02]}  a6 {[%clk 0:02:51]} 8. a5 {[%clk 0:03:01]}  b5 {[%clk 0:02:51]} 9. Ne5 {[%clk 0:03:01]}  Bb7 {[%clk 0:02:51]} 10. Bf4 {[%clk 0:02:52]}  Nbd7 {[%clk 0:02:48]} 11. Re1 {[%clk 0:02:50]}  Nh5 {[%clk 0:02:48]} 12. Nxd5 {[%clk 0:02:35]}  Nxf4 {[%clk 0:02:43]} 13. gxf4 {[%clk 0:02:28]}  e6 {[%clk 0:02:33]} 14. Ne3 {[%clk 0:02:09]}  Bxg2 {[%clk 0:02:32]} 15. Nxg2 {[%clk 0:02:10]}  Nxe5 {[%clk 0:02:22]} 16. dxe5 {[%clk 0:02:11]}  c5 {[%clk 0:02:19]} 17. Qxd8 {[%clk 0:02:05]}  Rfxd8 {[%clk 0:02:18]} 18. Red1 {[%clk 0:02:06]}  f6 {[%clk 0:02:18]} 19. exf6 {[%clk 0:02:05]}  Bxf6 {[%clk 0:02:19]} 20. c3 {[%clk 0:01:59]}  b4 {[%clk 0:02:19]} 21. Ne3 {[%clk 0:01:45]}  bxc3 {[%clk 0:02:17]} 22. bxc3 {[%clk 0:01:45]}  Bxc3 {[%clk 0:02:17]} 23. Rac1 {[%clk 0:01:42]}  Bxa5 {[%clk 0:02:16]} 24. Rxd8+ {[%clk 0:01:21]}  Rxd8 {[%clk 0:02:12]} 25. Rxc5 {[%clk 0:01:21]}  Bb6 {[%clk 0:02:12]} 26. Rc6 {[%clk 0:01:15]}  Bxe3 {[%clk 0:02:12]} 27. fxe3 {[%clk 0:01:16]}  Ra8 {[%clk 0:02:06]} 28. Rxe6 {[%clk 0:01:15]}  a5 {[%clk 0:02:07]} 29. Rc6 {[%clk 0:01:14]}  a4 {[%clk 0:02:08]} 30. Rc2 {[%clk 0:01:14]}  a3 {[%clk 0:02:08]} 31. Ra2 {[%clk 0:01:14]}  Kf7 {[%clk 0:02:09]} 32. Kf2 {[%clk 0:01:12]}  Ke6 {[%clk 0:02:09]} 33. e4 {[%clk 0:01:13]}  Kd6 {[%clk 0:02:07]} 34. Ke3 {[%clk 0:01:11]}  Kc5 {[%clk 0:02:07]} 35. f5 {[%clk 0:01:04]}  Kb4 {[%clk 0:02:03]} 36. f6 {[%clk 0:01:00]}  Kb3 {[%clk 0:02:04]} 37. Rd2 {[%clk 0:00:31]}  a2 {[%clk 0:01:49]} 38. Rxa2 {[%clk 0:00:18]}  Rxa2 {[%clk 0:01:49]} 39. Kd4 {[%clk 0:00:18]}  Ra4+ {[%clk 0:00:54]} 40. Kd5 {[%clk 0:00:16]}  Ra5+ {[%clk 0:00:44]} 41. Ke6 {[%clk 0:00:15]}  Kc4 {[%clk 0:00:44]} 42. f7 {[%clk 0:00:14]}  Ra8 {[%clk 0:00:43]} 43. Kf6 {[%clk 0:00:08]}  Rf8 {[%clk 0:00:06]} 44. e5 {[%clk 0:00:07]}  Kd5 {[%clk 0:00:06]} 45. e6 {[%clk 0:00:07]}  Rb8 {[%clk 0:00:03]} 46. e7 {[%clk 0:00:07]}  Rb6+ {[%clk 0:00:04]} 47. Kg7 {[%clk 0:00:07]}  Ke6 {[%clk 0:00:05]} 48. e8=Q+ {[%clk 0:00:06]}  Kd6 {[%clk 0:00:06]} 49. Qd8+ {[%clk 0:00:06]}  Kc6 {[%clk 0:00:06]} 50. Qxb6+ {[%clk 0:00:07]}  Kxb6 {[%clk 0:00:06]} 51. f8=Q {[%clk 0:00:08]}  g5 {[%clk 0:00:07]} 52. Kxh7 {[%clk 0:00:08]}  g4 {[%clk 0:00:08]} 53. Qf5 {[%clk 0:00:07]} 1-0


[Site "https://www.chess.com"]

[Event "Titled Tuesday Blitz May 10 Early 2022"]
[White "Ardila, Oscar Humberto"]
[Black "Tomaszewski, Kacper"]
[WhiteFideId "4404742"]
[BlackFideId "1127373"]
[WhiteElo "1928"]
[BlackElo "2153"]
[Result "0-1"]
[Round "06"]
[TimeControl "180+1"]
[Date "2022.05.11"]
[WhiteClock "0:00:42"]
[BlackClock "0:01:38"]

1. d4 {[%clk 0:02:55]}  g6 {[%clk 0:02:59]} 2. c4 {[%clk 0:02:55]}  Bg7 {[%clk 0:02:58]} 3. Nc3 {[%clk 0:02:55]}  c5 {[%clk 0:02:58]} 4. d5 {[%clk 0:02:52]}  Bxc3+ {[%clk 0:02:58]} 5. bxc3 {[%clk 0:02:53]}  e5 {[%clk 0:02:59]} 6. e4 {[%clk 0:02:49]}  d6 {[%clk 0:02:58]} 7. Bd3 {[%clk 0:02:49]}  Qf6 {[%clk 0:02:52]} 8. Ne2 {[%clk 0:02:47]}  Bg4 {[%clk 0:02:41]} 9. O-O {[%clk 0:02:45]}  Bxe2 {[%clk 0:02:40]} 10. Qxe2 {[%clk 0:02:45]}  Nd7 {[%clk 0:02:37]} 11. Rb1 {[%clk 0:02:32]}  b6 {[%clk 0:02:26]} 12. f4 {[%clk 0:02:28]}  Qe7 {[%clk 0:02:25]} 13. f5 {[%clk 0:02:27]}  g5 {[%clk 0:02:20]} 14. Qh5 {[%clk 0:02:22]}  Ngf6 {[%clk 0:02:12]} 15. Qxg5 {[%clk 0:02:16]}  Rg8 {[%clk 0:02:11]} 16. Qh4 {[%clk 0:02:16]}  O-O-O {[%clk 0:02:10]} 17. Qf2 {[%clk 0:01:48]}  Rg7 {[%clk 0:02:04]} 18. Kh1 {[%clk 0:01:41]}  Rdg8 {[%clk 0:02:04]} 19. g3 {[%clk 0:01:23]}  Ng4 {[%clk 0:02:01]} 20. Qe2 {[%clk 0:01:23]}  h5 {[%clk 0:01:56]} 21. f6 {[%clk 0:00:46]}  Ndxf6 {[%clk 0:01:53]} 22. Qf3 {[%clk 0:00:46]}  h4 {[%clk 0:01:49]} 23. Qf5+ {[%clk 0:00:46]}  Kb8 {[%clk 0:01:49]} 24. Be2 {[%clk 0:00:45]}  hxg3 {[%clk 0:01:43]} 25. h3 {[%clk 0:00:44]}  g2+ {[%clk 0:01:42]} 26. Kg1 {[%clk 0:00:43]}  gxf1=Q+ {[%clk 0:01:40]} 27. Qxf1 {[%clk 0:00:42]}  Ne3+ {[%clk 0:01:38]} 0-1


[Site "https://www.chess.com"]

[Event "Titled Tuesday Blitz May 10 Early 2022"]
[White "Aslanov, Umid"]
[Black "Kwon, Sehyun"]
[WhiteFideId "13412620"]
[BlackFideId "13203088"]
[WhiteElo "1796"]
[BlackElo "1778"]
[Result "0-1"]
[Round "06"]
[TimeControl "180+1"]
[Date "2022.05.11"]
[WhiteClock "0:00:38"]
[BlackClock "0:00:03"]

1. e4 {[%clk 0:03:00]}  Nf6 {[%clk 0:02:57]} 2. e5 {[%clk 0:03:00]}  Nd5 {[%clk 0:02:57]} 3. c4 {[%clk 0:03:01]}  Nb6 {[%clk 0:02:57]} 4. c5 {[%clk 0:03:02]}  Nd5 {[%clk 0:02:57]} 5. Be2 {[%clk 0:03:02]}  e6 {[%clk 0:02:51]} 6. d3 {[%clk 0:03:02]}  Bxc5 {[%clk 0:02:42]} 7. d4 {[%clk 0:03:00]}  Be7 {[%clk 0:02:28]} 8. Nc3 {[%clk 0:02:59]}  Nxc3 {[%clk 0:02:27]} 9. bxc3 {[%clk 0:03:00]}  d6 {[%clk 0:02:26]} 10. Nf3 {[%clk 0:03:00]}  Nd7 {[%clk 0:02:18]} 11. Bf4 {[%clk 0:02:58]}  b6 {[%clk 0:02:17]} 12. O-O {[%clk 0:02:57]}  Bb7 {[%clk 0:02:17]} 13. Re1 {[%clk 0:02:56]}  O-O {[%clk 0:02:16]} 14. exd6 {[%clk 0:02:47]}  cxd6 {[%clk 0:02:14]} 15. Qd2 {[%clk 0:02:43]}  Rc8 {[%clk 0:02:13]} 16. a4 {[%clk 0:02:39]}  Nf6 {[%clk 0:02:11]} 17. Rec1 {[%clk 0:02:29]}  Be4 {[%clk 0:01:16]} 18. a5 {[%clk 0:02:23]}  Nd5 {[%clk 0:01:15]} 19. Bg3 {[%clk 0:02:17]}  Bxf3 {[%clk 0:01:11]} 20. Bxf3 {[%clk 0:02:14]}  Bg5 {[%clk 0:01:11]} 21. Qb2 {[%clk 0:02:09]}  Bxc1 {[%clk 0:01:11]} 22. Rxc1 {[%clk 0:02:10]}  bxa5 {[%clk 0:01:03]} 23. Qa3 {[%clk 0:02:08]}  Qb6 {[%clk 0:01:00]} 24. h3 {[%clk 0:02:05]}  Rfd8 {[%clk 0:00:56]} 25. Be4 {[%clk 0:02:00]}  Nf6 {[%clk 0:00:53]} 26. Bd3 {[%clk 0:01:55]}  d5 {[%clk 0:00:48]} 27. Rb1 {[%clk 0:01:52]}  Qc6 {[%clk 0:00:48]} 28. Rb3 {[%clk 0:01:48]}  a4 {[%clk 0:00:44]} 29. Bb5 {[%clk 0:01:47]}  Qb6 {[%clk 0:00:33]} 30. Bxa4 {[%clk 0:01:44]}  Qa5 {[%clk 0:00:32]} 31. f3 {[%clk 0:01:41]}  h6 {[%clk 0:00:20]} 32. Bb5 {[%clk 0:01:25]}  Qxa3 {[%clk 0:00:06]} 33. Rxa3 {[%clk 0:01:26]}  Ne8 {[%clk 0:00:07]} 34. Rxa7 {[%clk 0:01:21]}  Rxc3 {[%clk 0:00:07]} 35. Kh2 {[%clk 0:01:17]}  Nd6 {[%clk 0:00:07]} 36. Bd7 {[%clk 0:01:12]}  Nf5 {[%clk 0:00:07]} 37. Be5 {[%clk 0:01:10]}  Rd3 {[%clk 0:00:03]} 38. Bb5 {[%clk 0:01:02]}  Rd2 {[%clk 0:00:04]} 39. Kg1 {[%clk 0:01:00]}  Nxd4 {[%clk 0:00:04]} 40. Bf1 {[%clk 0:00:57]}  Nf5 {[%clk 0:00:04]} 41. Bf4 {[%clk 0:00:57]}  Rb2 {[%clk 0:00:04]} 42. g3 {[%clk 0:00:56]}  d4 {[%clk 0:00:04]} 43. g4 {[%clk 0:00:55]}  Ne3 {[%clk 0:00:04]} 44. Bd3 {[%clk 0:00:53]}  Rd2 {[%clk 0:00:04]} 45. Be4 {[%clk 0:00:53]}  Rc8 {[%clk 0:00:03]} 46. Ra1 {[%clk 0:00:52]}  g5 {[%clk 0:00:03]} 47. Be5 {[%clk 0:00:51]}  Rd8 {[%clk 0:00:02]} 48. Bf6 {[%clk 0:00:51]}  Re8 {[%clk 0:00:02]} 49. Kh1 {[%clk 0:00:47]}  Nd5 {[%clk 0:00:02]} 50. Be5 {[%clk 0:00:46]}  Nf4 {[%clk 0:00:03]} 51. h4 {[%clk 0:00:45]}  Nd5 {[%clk 0:00:03]} 52. hxg5 {[%clk 0:00:44]}  hxg5 {[%clk 0:00:04]} 53. Ra2 {[%clk 0:00:43]}  Rxa2 {[%clk 0:00:03]} 54. Bxd4 {[%clk 0:00:43]}  Rc8 {[%clk 0:00:03]} 55. Be3 {[%clk 0:00:42]}  Rb8 {[%clk 0:00:02]} 56. Bf4 {[%clk 0:00:41]}  Rbb2 {[%clk 0:00:02]} 57. Be5 {[%clk 0:00:39]}  Ra1+ {[%clk 0:00:03]} 58. Bb1 {[%clk 0:00:38]}  Raxb1# {[%clk 0:00:03]} 0-1


[Site "https://www.chess.com"]

[Event "Titled Tuesday Blitz May 10 Early 2022"]
[White "Atakhan, Abtin"]
[Black "Ballester Llagaria, Luis Eduardo"]
[WhiteFideId "22502203"]
[BlackFideId "2297620"]
[WhiteElo "2094"]
[BlackElo "2344"]
[Result "1-0"]
[Round "06"]
[TimeControl "180+1"]
[Date "2022.05.11"]
[WhiteClock "0:01:30"]
[BlackClock "0:00:14"]

1. c4 {[%clk 0:03:00]}  e5 {[%clk 0:01:04]} 2. Nc3 {[%clk 0:03:00]}  Nc6 {[%clk 0:01:05]} 3. g3 {[%clk 0:03:00]}  f5 {[%clk 0:01:06]} 4. Bg2 {[%clk 0:03:00]}  Nf6 {[%clk 0:01:06]} 5. d3 {[%clk 0:03:01]}  Bb4 {[%clk 0:01:07]} 6. Bg5 {[%clk 0:02:57]}  O-O {[%clk 0:01:04]} 7. Nf3 {[%clk 0:02:55]}  d6 {[%clk 0:01:02]} 8. O-O {[%clk 0:02:54]}  Bxc3 {[%clk 0:01:03]} 9. bxc3 {[%clk 0:02:54]}  Qe8 {[%clk 0:01:03]} 10. e3 {[%clk 0:02:44]}  Qh5 {[%clk 0:01:01]} 11. Bxf6 {[%clk 0:02:37]}  Rxf6 {[%clk 0:01:00]} 12. Nd2 {[%clk 0:02:36]}  Qe8 {[%clk 0:00:43]} 13. f4 {[%clk 0:02:33]}  Bd7 {[%clk 0:00:41]} 14. Qe2 {[%clk 0:02:25]}  Kh8 {[%clk 0:00:39]} 15. Rae1 {[%clk 0:02:26]}  Qf8 {[%clk 0:00:32]} 16. Nf3 {[%clk 0:02:22]}  Re8 {[%clk 0:00:31]} 17. Nh4 {[%clk 0:02:22]}  Nd8 {[%clk 0:00:29]} 18. Qd1 {[%clk 0:02:17]}  Bc6 {[%clk 0:00:29]} 19. Bh3 {[%clk 0:02:09]}  g6 {[%clk 0:00:26]} 20. g4 {[%clk 0:02:07]}  exf4 {[%clk 0:00:26]} 21. g5 {[%clk 0:02:02]}  Rfe6 {[%clk 0:00:22]} 22. exf4 {[%clk 0:02:03]}  Qe7 {[%clk 0:00:21]} 23. Rxe6 {[%clk 0:01:45]}  Qxe6 {[%clk 0:00:21]} 24. Bg2 {[%clk 0:01:40]}  Bxg2 {[%clk 0:00:20]} 25. Nxg2 {[%clk 0:01:40]}  Qe2 {[%clk 0:00:15]} 26. Qb1 {[%clk 0:01:31]}  b6 {[%clk 0:00:14]} 27. Re1 {[%clk 0:01:30]} 1-0


[Site "https://www.chess.com"]

[Event "Titled Tuesday Blitz May 10 Early 2022"]
[White "Bachmann, Axel"]
[Black "Daneshvar, Bardiya"]
[WhiteFideId "3700488"]
[BlackFideId "12576468"]
[WhiteElo "2587"]
[BlackElo "2330"]
[Result "0-1"]
[Round "06"]
[TimeControl "180+1"]
[Date "2022.05.10"]
[WhiteClock "0:00:07"]
[BlackClock "0:00:04"]

1. e4 {[%clk 0:02:53]}  c6 {[%clk 0:02:58]} 2. d4 {[%clk 0:02:52]}  d5 {[%clk 0:02:58]} 3. e5 {[%clk 0:02:52]}  Bf5 {[%clk 0:02:57]} 4. Nd2 {[%clk 0:02:50]}  e6 {[%clk 0:02:57]} 5. Nb3 {[%clk 0:02:49]}  Nd7 {[%clk 0:02:57]} 6. Nf3 {[%clk 0:02:47]}  h6 {[%clk 0:02:51]} 7. a4 {[%clk 0:02:41]}  Qc7 {[%clk 0:02:43]} 8. a5 {[%clk 0:02:37]}  a6 {[%clk 0:02:42]} 9. Be2 {[%clk 0:02:33]}  c5 {[%clk 0:02:32]} 10. dxc5 {[%clk 0:02:29]}  Bxc5 {[%clk 0:02:29]} 11. Nxc5 {[%clk 0:02:24]}  Nxc5 {[%clk 0:02:30]} 12. O-O {[%clk 0:02:24]}  Ne7 {[%clk 0:02:30]} 13. Be3 {[%clk 0:02:19]}  O-O {[%clk 0:02:18]} 14. Nd4 {[%clk 0:02:08]}  Bh7 {[%clk 0:02:11]} 15. f4 {[%clk 0:01:57]}  Nf5 {[%clk 0:01:56]} 16. Nxf5 {[%clk 0:01:55]}  Bxf5 {[%clk 0:01:57]} 17. Bd4 {[%clk 0:01:49]}  Rac8 {[%clk 0:01:43]} 18. g4 {[%clk 0:01:44]}  Bh7 {[%clk 0:01:41]} 19. c3 {[%clk 0:01:32]}  Ne4 {[%clk 0:01:37]} 20. Bd3 {[%clk 0:01:22]}  Qe7 {[%clk 0:01:31]} 21. Qe2 {[%clk 0:01:06]}  Qh4 {[%clk 0:01:25]} 22. Rae1 {[%clk 0:01:06]}  Kh8 {[%clk 0:01:19]} 23. Qg2 {[%clk 0:01:02]}  Qd8 {[%clk 0:01:00]} 24. Re3 {[%clk 0:00:57]}  Qxa5 {[%clk 0:00:55]} 25. f5 {[%clk 0:00:56]}  Qd8 {[%clk 0:00:38]} 26. f6 {[%clk 0:00:49]}  Rg8 {[%clk 0:00:28]} 27. Rh3 {[%clk 0:00:47]}  Qf8 {[%clk 0:00:24]} 28. Be3 {[%clk 0:00:36]}  g5 {[%clk 0:00:20]} 29. Rh5 {[%clk 0:00:19]}  Bg6 {[%clk 0:00:12]} 30. Qh3 {[%clk 0:00:19]}  Bxh5 {[%clk 0:00:12]} 31. Qxh5 {[%clk 0:00:20]}  Rg6 {[%clk 0:00:09]} 32. Rf3 {[%clk 0:00:18]}  Kg8 {[%clk 0:00:09]} 33. h4 {[%clk 0:00:17]}  gxh4 {[%clk 0:00:06]} 34. Qxh4 {[%clk 0:00:18]}  b5 {[%clk 0:00:05]} 35. Rh3 {[%clk 0:00:17]}  b4 {[%clk 0:00:05]} 36. cxb4 {[%clk 0:00:06]}  Qxb4 {[%clk 0:00:04]} 37. Bxh6 {[%clk 0:00:07]}  Rxh6 {[%clk 0:00:03]} 38. Qxh6 {[%clk 0:00:06]}  Qe1+ {[%clk 0:00:03]} 39. Bf1 {[%clk 0:00:07]}  Qf2+ {[%clk 0:00:03]} 40. Kh1 {[%clk 0:00:07]}  Qxf1+ {[%clk 0:00:04]} 41. Kh2 {[%clk 0:00:07]}  Rc2+ {[%clk 0:00:04]} 0-1


[Site "https://www.chess.com"]

[Event "Titled Tuesday Blitz May 10 Early 2022"]
[White "Bai, Adelard"]
[Black "Bashirli, Saadat"]
[WhiteFideId "16301188"]
[BlackFideId "13429990"]
[WhiteElo "2120"]
[BlackElo "1173"]
[Result "1-0"]
[Round "06"]
[TimeControl "180+1"]
[Date "2022.05.11"]
[WhiteClock "0:00:34"]
[BlackClock "0:00:01"]

1. g3 {[%clk 0:03:00]}  d5 {[%clk 0:02:59]} 2. Bg2 {[%clk 0:02:57]}  c6 {[%clk 0:02:59]} 3. d3 {[%clk 0:02:55]}  Nf6 {[%clk 0:02:59]} 4. Nf3 {[%clk 0:02:55]}  g6 {[%clk 0:02:59]} 5. O-O {[%clk 0:02:54]}  Bg7 {[%clk 0:02:58]} 6. Nc3 {[%clk 0:02:53]}  Bg4 {[%clk 0:02:57]} 7. h3 {[%clk 0:02:52]}  Bxf3 {[%clk 0:02:56]} 8. Bxf3 {[%clk 0:02:53]}  O-O {[%clk 0:02:56]} 9. e4 {[%clk 0:02:53]}  Na6 {[%clk 0:02:54]} 10. e5 {[%clk 0:02:51]}  Nd7 {[%clk 0:02:53]} 11. d4 {[%clk 0:02:46]}  e6 {[%clk 0:02:53]} 12. Ne2 {[%clk 0:02:46]}  c5 {[%clk 0:02:53]} 13. c3 {[%clk 0:02:47]}  cxd4 {[%clk 0:02:51]} 14. cxd4 {[%clk 0:02:48]}  Qb6 {[%clk 0:02:49]} 15. a3 {[%clk 0:02:46]}  Rac8 {[%clk 0:02:47]} 16. Rb1 {[%clk 0:02:40]}  Rc7 {[%clk 0:02:42]} 17. Nc3 {[%clk 0:02:37]}  Rfc8 {[%clk 0:02:37]} 18. Be3 {[%clk 0:02:29]}  Qc6 {[%clk 0:02:24]} 19. Rc1 {[%clk 0:02:24]}  Qb6 {[%clk 0:02:19]} 20. Na4 {[%clk 0:02:04]}  Qa5 {[%clk 0:02:06]} 21. Bd2 {[%clk 0:02:00]}  Rxc1 {[%clk 0:02:05]} 22. Bxa5 {[%clk 0:02:00]}  Rxd1 {[%clk 0:02:04]} 23. Rxd1 {[%clk 0:01:55]}  Rc2 {[%clk 0:02:01]} 24. Rd2 {[%clk 0:01:49]}  Rc4 {[%clk 0:01:58]} 25. b3 {[%clk 0:01:43]}  Rc1+ {[%clk 0:01:56]} 26. Rd1 {[%clk 0:01:44]}  Rxd1+ {[%clk 0:01:42]} 27. Bxd1 {[%clk 0:01:45]}  b6 {[%clk 0:01:41]} 28. Bd2 {[%clk 0:01:34]}  Ndb8 {[%clk 0:01:35]} 29. Be2 {[%clk 0:01:28]}  Nc7 {[%clk 0:01:25]} 30. Nc3 {[%clk 0:01:27]}  Nc6 {[%clk 0:01:24]} 31. Be3 {[%clk 0:01:24]}  f6 {[%clk 0:01:20]} 32. f4 {[%clk 0:01:23]}  fxe5 {[%clk 0:01:16]} 33. fxe5 {[%clk 0:01:24]}  Ne7 {[%clk 0:01:12]} 34. g4 {[%clk 0:01:22]}  Nc6 {[%clk 0:01:05]} 35. Kg2 {[%clk 0:01:19]}  Ne7 {[%clk 0:01:03]} 36. Kf2 {[%clk 0:01:16]}  a6 {[%clk 0:01:02]} 37. Na4 {[%clk 0:01:14]}  b5 {[%clk 0:00:57]} 38. Nc5 {[%clk 0:01:14]}  Kf7 {[%clk 0:00:55]} 39. a4 {[%clk 0:01:14]}  bxa4 {[%clk 0:00:52]} 40. bxa4 {[%clk 0:01:15]}  a5 {[%clk 0:00:49]} 41. Bd2 {[%clk 0:01:12]}  Nc6 {[%clk 0:00:49]} 42. Nb3 {[%clk 0:01:08]}  Bf8 {[%clk 0:00:42]} 43. Bxa5 {[%clk 0:01:08]}  Nxa5 {[%clk 0:00:39]} 44. Nxa5 {[%clk 0:01:08]}  Bb4 {[%clk 0:00:38]} 45. Nc6 {[%clk 0:00:59]}  Bc3 {[%clk 0:00:37]} 46. Ke3 {[%clk 0:00:50]}  Ke8 {[%clk 0:00:35]} 47. Kd3 {[%clk 0:00:51]}  Be1 {[%clk 0:00:33]} 48. Na7 {[%clk 0:00:42]}  Kd7 {[%clk 0:00:28]} 49. Kc2 {[%clk 0:00:42]}  Bf2 {[%clk 0:00:27]} 50. Kc3 {[%clk 0:00:41]}  Be1+ {[%clk 0:00:18]} 51. Kc2 {[%clk 0:00:41]}  Bf2 {[%clk 0:00:13]} 52. Bb5+ {[%clk 0:00:41]}  Nxb5 {[%clk 0:00:10]} 53. Nxb5 {[%clk 0:00:39]}  Kc6 {[%clk 0:00:07]} 54. Kd3 {[%clk 0:00:39]}  Kb6 {[%clk 0:00:06]} 55. Nd6 {[%clk 0:00:35]}  h5 {[%clk 0:00:01]} 56. Ne8 {[%clk 0:00:34]} 1-0


[Site "https://www.chess.com"]

[Event "Titled Tuesday Blitz May 10 Early 2022"]
[White "Batsiashvili, Nino"]
[Black "Bifulco, Michel"]
[WhiteFideId "13602993"]
[BlackFideId "828580"]
[WhiteElo "2193"]
[BlackElo "2165"]
[Result "1-0"]
[Round "06"]
[TimeControl "180+1"]
[Date "2022.05.11"]
[WhiteClock "0:00:23"]
[BlackClock "0:00:04"]

1. d4 {[%clk 0:02:22]}  Nf6 {[%clk 0:02:59]} 2. c4 {[%clk 0:02:14]}  g6 {[%clk 0:02:59]} 3. Nc3 {[%clk 0:02:14]}  Bg7 {[%clk 0:02:59]} 4. e4 {[%clk 0:02:15]}  d6 {[%clk 0:03:00]} 5. h3 {[%clk 0:02:16]}  O-O {[%clk 0:03:00]} 6. Be3 {[%clk 0:02:16]}  e5 {[%clk 0:02:57]} 7. d5 {[%clk 0:02:16]}  a5 {[%clk 0:02:55]} 8. g4 {[%clk 0:02:16]}  Na6 {[%clk 0:02:54]} 9. f3 {[%clk 0:02:15]}  Nd7 {[%clk 0:02:52]} 10. h4 {[%clk 0:02:14]}  Ndc5 {[%clk 0:02:48]} 11. h5 {[%clk 0:02:14]}  c6 {[%clk 0:02:36]} 12. Qd2 {[%clk 0:02:12]}  cxd5 {[%clk 0:02:28]} 13. cxd5 {[%clk 0:02:13]}  b6 {[%clk 0:02:20]} 14. hxg6 {[%clk 0:02:11]}  fxg6 {[%clk 0:02:20]} 15. Qh2 {[%clk 0:02:12]}  Kf7 {[%clk 0:01:40]} 16. Nh3 {[%clk 0:01:55]}  Rh8 {[%clk 0:01:33]} 17. Ng5+ {[%clk 0:01:54]}  Kg8 {[%clk 0:01:32]} 18. Nxh7 {[%clk 0:01:47]}  Ra7 {[%clk 0:01:30]} 19. g5 {[%clk 0:01:47]}  Nb4 {[%clk 0:01:24]} 20. O-O-O {[%clk 0:01:41]}  a4 {[%clk 0:01:18]} 21. a3 {[%clk 0:01:33]}  Nba6 {[%clk 0:01:03]} 22. Kb1 {[%clk 0:01:26]}  Bd7 {[%clk 0:00:51]} 23. Bh3 {[%clk 0:01:26]}  Bxh3 {[%clk 0:00:37]} 24. Qxh3 {[%clk 0:01:26]}  b5 {[%clk 0:00:34]} 25. Nxb5 {[%clk 0:01:19]}  Rb7 {[%clk 0:00:34]} 26. Nc3 {[%clk 0:01:14]}  Qb8 {[%clk 0:00:13]} 27. Rd2 {[%clk 0:01:13]}  Rb3 {[%clk 0:00:11]} 28. Kc1 {[%clk 0:00:58]}  Qe8 {[%clk 0:00:07]} 29. Kd1 {[%clk 0:00:48]}  Qb8 {[%clk 0:00:06]} 30. Rdh2 {[%clk 0:00:42]}  Qe8 {[%clk 0:00:03]} 31. Nf6+ {[%clk 0:00:41]}  Bxf6 {[%clk 0:00:03]} 32. Qxh8+ {[%clk 0:00:41]}  Bxh8 {[%clk 0:00:03]} 33. Rxh8+ {[%clk 0:00:41]}  Kf7 {[%clk 0:00:03]} 34. Rxe8 {[%clk 0:00:42]}  Kxe8 {[%clk 0:00:03]} 35. Kc2 {[%clk 0:00:42]}  Rb7 {[%clk 0:00:02]} 36. Rh8+ {[%clk 0:00:40]}  Kd7 {[%clk 0:00:02]} 37. Rh7+ {[%clk 0:00:40]}  Kc8 {[%clk 0:00:03]} 38. Rxb7 {[%clk 0:00:41]}  Kxb7 {[%clk 0:00:03]} 39. f4 {[%clk 0:00:37]}  exf4 {[%clk 0:00:03]} 40. Bxf4 {[%clk 0:00:38]}  Kc7 {[%clk 0:00:02]} 41. e5 {[%clk 0:00:35]}  dxe5 {[%clk 0:00:02]} 42. Bxe5+ {[%clk 0:00:36]}  Kd7 {[%clk 0:00:02]} 43. Nb5 {[%clk 0:00:35]}  Ne4 {[%clk 0:00:01]} 44. Bf6 {[%clk 0:00:33]}  Nac5 {[%clk 0:00:01]} 45. Nc3 {[%clk 0:00:29]}  Nxc3 {[%clk 0:00:01]} 46. Kxc3 {[%clk 0:00:29]}  Ne4+ {[%clk 0:00:01]} 47. Kb4 {[%clk 0:00:27]}  Kd6 {[%clk 0:00:02]} 48. Kxa4 {[%clk 0:00:27]}  Kxd5 {[%clk 0:00:02]} 49. Kb5 {[%clk 0:00:26]}  Kd6 {[%clk 0:00:02]} 50. a4 {[%clk 0:00:26]}  Nxf6 {[%clk 0:00:02]} 51. gxf6 {[%clk 0:00:25]}  g5 {[%clk 0:00:03]} 52. f7 {[%clk 0:00:21]}  Ke7 {[%clk 0:00:02]} 53. a5 {[%clk 0:00:21]}  g4 {[%clk 0:00:03]} 54. a6 {[%clk 0:00:21]}  g3 {[%clk 0:00:03]} 55. a7 {[%clk 0:00:21]}  g2 {[%clk 0:00:03]} 56. f8=Q+ {[%clk 0:00:22]}  Kxf8 {[%clk 0:00:03]} 57. a8=Q+ {[%clk 0:00:22]}  Ke7 {[%clk 0:00:04]} 58. Qxg2 {[%clk 0:00:23]} 1-0


[Site "https://www.chess.com"]

[Event "Titled Tuesday Blitz May 10 Early 2022"]
[White "Bilych, Olexiy"]
[Black "Golubev, Mikhail"]
[WhiteFideId "14156504"]
[BlackFideId "14100983"]
[WhiteElo "2176"]
[BlackElo "2374"]
[Result "0-1"]
[Round "06"]
[TimeControl "180+1"]
[Date "2022.05.11"]
[WhiteClock "0:00:11"]
[BlackClock "0:00:53"]

1. e4 {[%clk 0:03:00]}  c5 {[%clk 0:02:59]} 2. Nc3 {[%clk 0:03:01]}  d6 {[%clk 0:02:57]} 3. d4 {[%clk 0:03:01]}  cxd4 {[%clk 0:02:57]} 4. Qxd4 {[%clk 0:03:01]}  Nc6 {[%clk 0:02:57]} 5. Qd2 {[%clk 0:03:02]}  g6 {[%clk 0:02:57]} 6. b3 {[%clk 0:03:03]}  Bh6 {[%clk 0:02:55]} 7. f4 {[%clk 0:03:03]}  f5 {[%clk 0:02:54]} 8. Bb2 {[%clk 0:03:00]}  Nf6 {[%clk 0:02:53]} 9. O-O-O {[%clk 0:02:58]}  fxe4 {[%clk 0:02:33]} 10. Bc4 {[%clk 0:02:45]}  e6 {[%clk 0:02:29]} 11. Nb5 {[%clk 0:02:14]}  d5 {[%clk 0:02:26]} 12. Ba3 {[%clk 0:02:14]}  Bf8 {[%clk 0:01:59]} 13. Bxf8 {[%clk 0:01:22]}  Kxf8 {[%clk 0:02:00]} 14. Qc3 {[%clk 0:01:05]}  Kf7 {[%clk 0:01:41]} 15. g4 {[%clk 0:01:00]}  Qa5 {[%clk 0:01:38]} 16. Qxa5 {[%clk 0:00:48]}  Nxa5 {[%clk 0:01:38]} 17. Be2 {[%clk 0:00:49]}  Ke7 {[%clk 0:01:30]} 18. g5 {[%clk 0:00:45]}  Ne8 {[%clk 0:01:28]} 19. h4 {[%clk 0:00:42]}  Bd7 {[%clk 0:01:25]} 20. h5 {[%clk 0:00:39]}  Bxb5 {[%clk 0:01:25]} 21. Bxb5 {[%clk 0:00:39]}  Nd6 {[%clk 0:01:24]} 22. Be2 {[%clk 0:00:39]}  Raf8 {[%clk 0:01:23]} 23. Rh4 {[%clk 0:00:27]}  Nc6 {[%clk 0:01:18]} 24. Rd2 {[%clk 0:00:14]}  Nf5 {[%clk 0:01:17]} 25. Rh2 {[%clk 0:00:13]}  Ng3 {[%clk 0:01:14]} 26. Bg4 {[%clk 0:00:13]}  Rxf4 {[%clk 0:01:06]} 27. Bh3 {[%clk 0:00:11]}  Nxh5 {[%clk 0:01:04]} 28. Ne2 {[%clk 0:00:12]}  Rf7 {[%clk 0:01:02]} 29. Kb2 {[%clk 0:00:11]}  Rhf8 {[%clk 0:01:02]} 30. Nc3 {[%clk 0:00:12]}  Ne5 {[%clk 0:00:59]} 31. Rhe2 {[%clk 0:00:10]}  Nf3 {[%clk 0:00:58]} 32. Rd1 {[%clk 0:00:10]}  Nxg5 {[%clk 0:00:55]} 33. Bg4 {[%clk 0:00:10]}  Nf4 {[%clk 0:00:55]} 34. Ree1 {[%clk 0:00:10]}  h5 {[%clk 0:00:54]} 35. Be2 {[%clk 0:00:10]}  Nxe2 {[%clk 0:00:54]} 36. Rxe2 {[%clk 0:00:11]}  Rf2 {[%clk 0:00:53]} 0-1


[Site "https://www.chess.com"]